bitfinex/quotes_ETHUSD_20260312
["timestamp","ask_amount","ask_price","bid_price","bid_amount"]
[1773353829870,2.90100125,2063.6,2063.4,0.0011]
[1773353831069,2.90100125,2063.6,2063.4,0.03620205]
[1773353831577,0.001,2063.6,2063.4,0.03620205]
[1773353832686,0.001,2063.6,2063.5,1.24663585]
[1773353836380,0.001,2063.9,2063.6,0.03510205]
[1773353836582,2.90200125,2063.9,2063.6,0.03510205]
[1773353837084,2.90200125,2063.9,2063.7,1.24651843]
[1773353838786,2.90200125,2063.9,2063.8,0.03510205]
[1773353839452,2.90200125,2063.9,2063.6,1.24653058]
[1773353839654,0.001,2063.9,2063.6,1.24653058]
[1773353839986,0.001,2063.9,2063.7,0.03510205]
[1773353840371,2.90200125,2063.9,2063.8,0.03510205]
[1773353841496,2.90200125,2063.9,2063.7,1.24649507]
[1773353842590,2.90200125,2063.9,2063.8,0.0011]
[1773353845091,0.49556387,2064.1,2063.8,0.03620205]
[1773353845092,0.0131149,2064.1,2063.8,0.03620205]
[1773353845295,2.86438984,2064.1,2063.8,0.03620205]
[1773353846061,0.48244897,2064.4,2063.9,0.03510205]
[1773353846262,1.70648529,2064.6,2063.9,0.03510205]
[1773353846772,0.48244897,2064.5,2063.9,0.03510205]
[1773353847086,1.69340778,2064.5,2064.1,0.03510205]
[1773353847287,1.69340778,2064.5,2063.9,3.51825817]
[1773353847288,0.48244897,2064.4,2063.9,3.51825817]
[1773353847465,0.48244897,2064.4,2063.9,3.55336022]
[1773353849261,0.48244897,2064.4,2063.9,2.307]
[1773353849262,0.48244897,2064.3,2063.9,2.307]
[1773353849473,0.48244897,2064.3,2063.9,3.51829005]
[1773353849672,0.48244897,2064.3,2063.9,3.37050643]
[1773353849869,0.48244897,2064.0,2063.6,1.22354469]
[1773353850201,1.21104884,2064.4,2063.7,0.03510205]
[1773353850364,0.48244897,2064.3,2063.7,0.03510205]
[1773353853026,0.48244897,2064.1,2063.7,0.03510205]
[1773353853318,0.48244897,2064.1,2063.7,1.21141304]
[1773353854276,0.48244897,2063.9,2063.6,0.0121149]
[1773353854710,0.48244897,2063.9,2063.6,1.22358817]
[1773353855507,0.48244897,2063.9,2063.8,0.0011]
[1773353861586,1.69374796,2063.9,2063.8,0.0011]
[1773353866312,0.48244897,2063.9,2063.8,0.0011]
[1773353867695,1.21221017,2064.1,2063.8,0.0011]
[1773353867892,0.48244897,2064.0,2063.9,0.0011]
[1773353871016,1.69368928,2064.0,2063.9,0.0011]
[1773353875436,0.48189897,2063.9,2063.8,0.0011]
[1773353875893,0.48189897,2063.9,2063.6,0.0132149]
[1773353878006,0.48189897,2063.7,2063.6,0.0132149]
[1773353880013,1.69331535,2063.7,2063.6,0.0132149]
[1773353880207,1.69331535,2063.7,2063.4,0.03730205]
[1773353880208,0.48189897,2063.6,2063.4,0.0011]
[1773353882002,2.25640999,2063.8,2063.4,1.24888915]
[1773353882003,1.69430414,2063.8,2063.4,1.24888915]
[1773353882204,1.69430414,2063.8,2063.5,0.03620205]
[1773353884141,0.001,2063.8,2063.5,1.24773557]
[1773353884540,0.001,2063.8,2063.5,0.03620205]
[1773353884747,0.001,2063.8,2063.6,0.03620205]
[1773353885609,0.48189897,2064.0,2063.6,0.03620205]
[1773353886017,1.22432197,2064.1,2063.6,0.03620205]
[1773353886238,1.70622094,2064.1,2063.6,0.03620205]
[1773353887535,0.48189897,2064.0,2063.6,0.03620205]
[1773353887721,0.48189897,2064.0,2063.6,1.24767396]
[1773353887722,1.69316654,2064.0,2063.6,1.24767396]
[1773353889143,1.21126757,2064.0,2063.6,1.24767396]
[1773353889338,0.48189897,2063.9,2063.4,0.0011]
[1773353889542,0.48189897,2063.9,2063.4,0.00012341]
[1773353893042,0.48189897,2063.9,2063.6,0.0011]
[1773353893243,0.001,2063.7,2063.6,0.0011]
[1773353893441,0.48289897,2063.7,2063.6,0.0011]
[1773353897851,0.79439897,2063.9,2063.6,0.0011]
[1773353905469,0.79439897,2063.9,2063.8,0.0011]
[1773353906061,0.79439897,2063.9,2063.6,0.0011]
[1773353906740,1.22434775,2064.1,2063.6,0.0011]
[1773353906932,0.75875577,2064.1,2063.6,0.0011]
[1773353907565,0.75875577,2064.1,2063.6,1.21257509]
[1773353910590,0.74564087,2064.0,2063.6,1.21257509]
[1773353912596,0.74564087,2064.0,2063.6,0.0011]
[1773353919301,0.74564087,2064.0,2063.8,0.0011]
[1773353925605,0.74564087,2064.0,2063.6,0.0011]
[1773353925606,0.74564087,2063.9,2063.6,0.0011]
[1773353926810,0.74564087,2063.7,2063.6,0.0011]
[1773353927677,1.21128758,2064.0,2063.6,0.0011]
[1773353927891,0.74564087,2063.9,2063.6,0.0011]
[1773353928285,1.22431735,2064.1,2063.6,0.0011]
[1773353928491,0.74564087,2064.0,2063.6,0.0011]
[1773353929295,0.0131149,2064.1,2063.6,0.0011]
[1773353929495,0.75875274,2064.6,2063.8,1.04390357]
[1773353929906,0.74564087,2064.5,2063.8,1.04390357]
[1773353930628,0.74564087,2064.5,2063.6,1.04500357]
[1773353931824,0.74564087,2064.4,2063.8,0.0011]
[1773353936628,0.74564087,2064.4,2063.8,1.04500357]
[1773353940143,0.74564087,2064.4,2063.9,1.21129899]
[1773353940341,0.75875274,2064.6,2064.0,1.04390357]
[1773353943751,0.001,2064.2,2064.1,1.21118162]
[1773353943918,0.74564087,2064.5,2064.1,1.21118162]
[1773353944850,0.74564087,2064.5,2063.8,0.0011]
[1773353945052,1.04390357,2064.1,2063.5,1.21262785]
[1773353945219,5.102,2064.5,2063.6,0.04837208]
[1773353945220,0.74564087,2064.5,2063.6,0.04837208]
[1773353945550,0.74564087,2064.5,2063.6,1.04500357]
[1773353945745,0.74564087,2064.3,2063.6,0.0011]
[1773353947052,0.74564087,2064.3,2063.5,1.21262785]
[1773353947253,0.74564087,2064.3,2063.6,0.0011]
[1773353948247,0.74564087,2064.1,2063.5,1.21262785]
[1773353950826,0.75775577,2064.1,2063.5,1.21262785]
[1773353951863,0.75775577,2064.1,2063.6,1.04500357]
[1773353953495,0.47539058,2064.3,2063.8,0.25435912]
[1773353953765,0.47539058,2064.5,2063.9,0.25435912]
[1773353953926,0.47539058,2064.5,2063.9,0.25545912]
[1773353954739,0.47539058,2064.5,2064.1,0.25435912]
[1773353955742,0.001,2064.4,2064.2,1.21112295]
[1773353956937,0.47639058,2064.4,2064.2,1.21112295]
[1773353957853,0.47639058,2064.4,2064.1,4.64560777]
[1773353960276,0.47639058,2064.4,2064.0,3.46220185]
[1773353960277,0.47539058,2064.3,2064.0,3.46220185]
[1773353960474,0.47539058,2064.3,2064.1,0.0011]
[1773353962186,0.47539058,2064.3,2064.0,3.46223997]
[1773353962345,0.47539058,2064.3,2064.1,0.0011]
[1773353963568,0.47539058,2064.3,2064.2,0.0011]
[1773353963874,0.47539058,2064.3,2064.1,0.0011]
[1773353968574,0.46609703,2064.2,2064.1,0.0011]
[1773353968774,0.46509703,2064.3,2064.0,4.50724354]
[1773353968966,0.46509703,2064.3,2064.1,0.0011]
[1773353973884,0.46509703,2064.3,2064.2,0.0011]
[1773353974084,0.46509703,2064.3,2064.0,3.46330869]
[1773353978988,0.46509703,2064.3,2064.1,0.0011]
[1773353980285,0.46509703,2064.3,2064.2,0.0011]
[1773353983393,0.46509703,2064.3,2064.0,2.1558838]
[1773353983564,0.46509703,2064.3,2063.9,1.21125328]
[1773353983565,0.49613264,2064.2,2063.8,3.46640881]
[1773353984199,0.49613264,2064.0,2063.8,0.0011]
[1773353984993,0.49613264,2063.9,2063.8,0.0011]
[1773353985203,0.49613264,2063.9,2063.7,0.0011]
[1773353987066,2.75069248,2064.1,2063.7,0.0011]
[1773353987266,0.49613264,2064.0,2063.7,0.0011]
[1773353990104,0.49613264,2063.9,2063.7,0.0011]
[1773353990301,0.49613264,2063.9,2063.6,2.2661149]
[1773353991093,0.49613264,2063.9,2063.6,0.0121149]
[1773353992601,0.001,2063.8,2063.6,0.0121149]
[1773353992771,0.48717095,2063.8,2063.6,1.22358818]
[1773353993092,0.48717095,2063.8,2063.6,1.22468818]
[1773353993290,0.48717095,2063.8,2063.6,0.0132149]
[1773353994170,0.48717095,2063.8,2063.5,2.2551]
[1773353995895,0.48717095,2063.8,2063.5,3.46662806]
[1773353996204,0.48717095,2063.8,2063.5,2.2551]
[1773353997235,0.48617095,2063.7,2063.5,2.2551]
[1773353998314,0.48617095,2063.6,2063.5,2.2551]
[1773354000335,0.48617095,2063.5,2063.3,0.0011]
[1773354000518,0.48617095,2063.4,2063.1,0.01321793]
[1773354002398,0.48617095,2063.3,2063.1,0.01321793]
[1773354003298,0.48617095,2063.2,2063.0,2.2541]
[1773354006738,1.21159251,2063.4,2063.1,0.45527908]
[1773354008237,1.04337756,2063.3,2063.1,0.45527908]
[1773354008817,2.74121836,2063.3,2063.0,2.2541]
[1773354009023,2.74121836,2063.3,2063.0,2.70937908]
[1773354011416,0.48617095,2063.2,2062.9,0.45637908]
[1773354012335,2.25504741,2063.3,2062.9,0.45637908]
[1773354012539,2.74121836,2063.3,2062.9,0.45637908]
[1773354017173,2.74121836,2063.3,2063.1,0.0011]
[1773354020643,0.47516109,2063.2,2062.9,0.45637908]
[1773354020846,0.47516109,2063.2,2062.9,0.0011]
[1773354022904,1.21176869,2063.1,2062.9,0.0011]
[1773354023897,1.68692978,2063.1,2062.9,0.0011]
[1773354024591,0.47516109,2063.0,2062.7,0.15929896]
[1773354025374,1.6870368,2063.0,2062.7,0.15929896]
[1773354029684,1.6870368,2063.0,2062.9,0.0011]
[1773354029907,1.6870368,2063.0,2062.7,0.15929896]
[1773354031015,1.6870368,2063.0,2062.6,0.0011]
[1773354031219,1.6870368,2063.0,2062.6,0.16039896]
[1773354031618,1.6870368,2063.0,2062.7,0.15929896]
[1773354031794,1.21173513,2063.2,2062.7,0.15829896]
[1773354032507,4.84660687,2063.3,2062.7,0.15829896]
[1773354032508,1.21166972,2063.3,2062.7,0.15829896]
[1773354032710,4.84626591,2063.5,2062.7,0.15829896]
[1773354033393,5.321427,2063.5,2062.7,0.15829896]
[1773354034021,5.321427,2063.5,2062.9,0.15829896]
[1773354035310,0.47516109,2063.4,2062.9,0.15829896]
[1773354036228,1.21165123,2063.3,2062.9,0.15829896]
[1773354036393,0.47516109,2063.1,2062.7,0.15829896]
[1773354036833,1.68681232,2063.3,2062.7,0.15829896]
[1773354038030,1.21165123,2063.3,2062.7,0.15829896]
[1773354038242,1.21176869,2063.1,2062.7,1.21198137]
[1773354038406,1.21176869,2063.1,2062.8,0.15829896]
[1773354039313,1.68692978,2063.1,2062.8,0.15829896]
[1773354042347,1.68692978,2063.1,2062.9,0.0011]
[1773354043245,0.49658903,2063.0,2062.9,0.0011]
[1773354044856,1.21176869,2063.1,2062.9,0.0011]
[1773354045449,1.70835772,2063.1,2062.9,0.0011]
[1773354048156,0.49658903,2063.0,2062.9,0.0011]
[1773354050338,1.21176869,2063.1,2062.9,0.0011]
[1773354052563,1.69534047,2063.2,2062.9,0.15939896]
[1773354053143,1.69534047,2063.2,2062.6,1.21311803]
[1773354053441,1.21174015,2063.2,2062.6,1.21311803]
[1773354053762,1.71174014,2063.2,2062.6,1.21311803]
[1773354054765,1.71174014,2063.2,2063.1,0.0011]
[1773354055671,0.001,2063.3,2063.1,0.0011]
[1773354055862,1.71153379,2063.5,2063.1,0.0011]
[1773354056059,0.49999999,2063.4,2063.1,0.0011]
[1773354056263,0.49999999,2063.3,2063.1,0.0011]
[1773354057071,1.71166949,2063.3,2063.1,0.0011]
[1773354058973,0.49999999,2063.3,2063.1,0.0011]
[1773354059149,1.21161571,2063.4,2063.1,0.07054444]
[1773354060241,0.48359482,2063.5,2063.2,0.06944444]
[1773354060576,0.01211793,2063.6,2063.2,0.06944444]
[1773354061259,0.01211793,2063.6,2063.4,0.06944444]
[1773354065374,0.01211793,2063.6,2063.4,1.28103294]
[1773354065577,0.01211793,2063.6,2063.4,0.06944444]
[1773354072563,1.22359379,2063.6,2063.4,0.06944444]
[1773354072894,0.01211793,2063.6,2063.4,0.06944444]
[1773354076409,0.48359482,2063.5,2063.1,0.0011]
[1773354076712,0.48359482,2063.5,2063.1,1.28226561]
[1773354076880,1.70722912,2063.6,2063.2,0.06944444]
[1773354078317,1.70722912,2063.6,2063.5,0.0011]
[1773354079488,1.2236343,2063.6,2063.5,0.0011]
[1773354081405,1.72278587,2063.6,2063.5,0.0011]
[1773354086323,0.49999999,2063.5,2063.1,0.0011]
[1773354087226,0.01211793,2063.6,2063.1,1.21286612]
[1773354087531,0.001,2063.8,2063.3,1.0445433]
[1773354088301,0.001,2063.8,2063.4,1.21159251]
[1773354091117,0.001,2063.8,2063.4,0.0011]
[1773354091320,0.001,2063.6,2063.4,0.0011]
[1773354109473,0.51211489,2064.1,2063.4,1.0450356]
[1773354109698,0.51211489,2064.1,2063.5,0.03552389]
[1773354110909,0.51211489,2064.1,2063.6,1.21147509]
[1773354111111,0.51211489,2064.1,2063.7,0.0355403]
[1773354111606,0.51211489,2064.1,2063.6,1.21147509]
[1773354113813,0.51211489,2064.1,2063.5,4.84590036]
[1773354115721,0.51211489,2064.1,2063.6,0.0011]
[1773354116010,0.001,2063.9,2063.6,0.0011]
[1773354120739,0.50099999,2063.9,2063.6,0.0011]
[1773354121607,0.001,2063.9,2063.6,0.0011]
[1773354121941,0.50099999,2063.9,2063.6,0.0011]
[1773354123244,0.47382992,2064.0,2063.6,0.4800622]
[1773354123431,0.47382992,2064.0,2063.6,0.0011]
[1773354127726,0.47382992,2064.0,2063.6,1.69153729]
[1773354128151,0.47382992,2064.0,2063.8,0.0011]
[1773354134057,0.10874026,2064.0,2063.8,0.0011]
[1773354138369,0.0121149,2064.1,2063.8,1.69141988]
[1773354139160,0.0121149,2064.1,2063.9,0.4789622]
[1773354153196,0.0121149,2064.1,2064.0,0.0011]
[1773354157999,0.24435447,2064.1,2063.8,0.0011]
[1773354158200,0.23113957,2064.0,2063.8,0.0011]
[1773354159205,0.23113957,2064.0,2063.6,0.0011]
[1773354159376,0.23113957,2063.9,2063.6,0.0011]
[1773354159896,1.44249725,2063.8,2063.6,0.0011]
[1773354160100,0.23113957,2063.7,2063.6,0.0011]
[1773354160605,0.23113957,2063.7,2063.3,0.0011]
[1773354160789,0.18562986,2063.4,2063.1,0.01321793]
[1773354162006,1.39728109,2063.3,2063.1,0.01321793]
[1773354164825,0.18562986,2063.3,2063.1,0.01321793]
[1773354166121,1.39728877,2063.3,2063.1,0.01321793]
[1773354166514,0.18562986,2063.3,2063.1,0.01321793]
[1773354167030,1.39729058,2063.3,2063.1,0.01321793]
[1773354170220,0.18562986,2063.5,2063.1,0.49101896]
[1773354171810,0.18562986,2063.4,2063.1,0.01321793]
[1773354173436,0.18562986,2063.5,2063.1,1.68743577]
[1773354173633,0.18562986,2063.6,2063.2,0.46247581]
[1773354173816,1.39708406,2063.7,2063.2,0.46247581]
[1773354174130,0.18562986,2063.6,2063.2,0.46247581]
[1773354175847,1.2115338,2063.5,2063.2,0.46247581]
[1773354176835,1.3970874,2063.7,2063.3,0.46247581]
[1773354179754,0.18562986,2063.6,2063.3,0.46357581]
[1773354180761,0.18562986,2063.6,2063.3,0.0011]
[1773354181455,1.3970874,2063.7,2063.3,0.46357581]
[1773354185756,1.21145754,2063.7,2063.4,0.46247581]
[1773354186056,1.3970874,2063.7,2063.4,0.46247581]
[1773354186629,1.21334245,2063.9,2063.4,0.46247581]
[1773354186824,0.002,2063.9,2063.5,0.46247581]
[1773354191785,0.002,2063.9,2063.5,0.46357581]
[1773354192145,0.001,2063.7,2063.5,0.46357581]
[1773354196350,0.001,2063.7,2063.5,1.21258438]
[1773354196551,0.001,2063.7,2063.6,0.46247581]
[1773354197582,0.002,2063.9,2063.5,0.0011]
[1773354197787,1.22529877,2064.1,2063.8,0.46247581]
[1773354198083,1.2253063,2064.1,2063.8,0.46247581]
[1773354198389,0.18662986,2064.0,2063.6,1.6739509]
[1773354199182,0.18662986,2064.0,2063.7,0.46247581]
[1773354199885,1.39787351,2064.0,2063.7,0.46247581]
[1773354200798,4.85885492,2064.1,2063.8,0.45548564]
[1773354200799,0.0141149,2064.1,2063.8,0.45548564]
[1773354201864,0.0141149,2064.1,2064.0,0.45548564]
[1773354213317,0.0141149,2064.1,2064.0,1.66672595]
[1773354214316,0.0141149,2064.1,2064.0,0.45548564]
[1773354219026,0.2039057,2064.0,2063.8,0.0011]
[1773354219524,0.2039057,2064.0,2063.8,1.21245679]
[1773354219823,0.0141149,2064.1,2063.8,1.21245679]
[1773354220019,0.0141149,2064.1,2063.8,1.66794243]
[1773354221823,0.0141149,2064.1,2063.8,1.21245396]
[1773354222026,0.0141149,2064.1,2063.8,1.6679396]
[1773354224209,0.0141149,2064.1,2063.8,0.45658564]
[1773354225022,1.22530028,2064.1,2063.8,0.45658564]
[1773354225228,0.0141149,2064.1,2063.8,0.45658564]
[1773354226348,0.0141149,2064.1,2063.9,0.49624277]
[1773354227347,0.0141149,2064.1,2064.0,0.001]
[1773354229151,0.001,2064.4,2064.0,0.49724277]
[1773354229448,0.01210884,2065.1,2064.0,0.49724277]
[1773354229449,0.01210884,2065.1,2064.3,0.49624277]
[1773354229746,1.2227076,2065.1,2064.7,0.49624277]
[1773354230122,0.2039057,2065.0,2064.7,0.49624277]
[1773354230522,1.41459784,2065.0,2064.7,0.49624277]
[1773354231048,0.2039057,2065.0,2064.7,0.49624277]
[1773354239265,1.41456385,2065.0,2064.7,0.49624277]
[1773354239466,0.2039057,2065.0,2064.7,0.49624277]
[1773354240184,0.002,2064.8,2064.7,0.49624277]
[1773354242371,0.002,2064.8,2064.6,1.70939002]
[1773354243497,0.002,2064.8,2064.7,0.49852589]
[1773354244284,0.002,2064.8,2064.7,1.70935555]
[1773354245060,4.84391754,2065.3,2064.8,0.49852589]
[1773354245061,0.002,2065.3,2064.8,0.49852589]
[1773354245490,0.002,2065.3,2064.9,0.49852589]
[1773354245674,0.01210582,2065.6,2065.1,0.49852589]
[1773354246288,0.01210582,2065.6,2065.3,0.49852589]
[1773354248398,0.2059057,2065.5,2065.0,1.2106097]
[1773354248897,0.2059057,2065.5,2065.0,1.70913559]
[1773354249682,0.2059057,2065.5,2065.1,0.49852589]
[1773354251704,0.2059057,2065.5,2065.1,1.7090954]
[1773354252006,0.26105276,2065.4,2065.1,0.49852589]
[1773354252172,0.26105276,2065.4,2065.0,0.49852589]
[1773354254014,0.002,2065.3,2065.1,1.70912101]
[1773354255433,0.002,2065.5,2065.2,0.49852589]
[1773354256135,0.002,2065.5,2065.4,0.49852589]
[1773354260117,0.002,2065.5,2065.4,1.70894517]
[1773354262031,0.002,2065.5,2065.4,0.49852589]
[1773354262434,0.002,2065.5,2065.2,0.48769622]
[1773354262611,0.26305276,2065.5,2065.2,0.48769622]
[1773354266239,0.26105276,2065.4,2064.9,0.48869622]
[1773354266438,0.26105276,2065.4,2064.9,1.69940447]
[1773354267228,0.30149394,2065.2,2064.9,0.48869622]
[1773354267433,0.30149394,2065.2,2064.9,1.69940331]
[1773354267926,0.30149394,2065.2,2064.9,0.001]
[1773354268328,0.30149394,2065.2,2065.0,0.001]
[1773354271277,1.51203907,2065.2,2065.0,0.001]
[1773354271851,0.30149394,2065.2,2065.0,0.001]
[1773354274279,1.2105368,2065.2,2065.0,0.001]
[1773354276376,4.84414277,2065.3,2065.0,0.001]
[1773354278699,1.04363937,2065.2,2064.6,0.01310884]
[1773354279697,1.04295679,2065.2,2064.6,0.01310884]
[1773354281297,1.21059512,2065.1,2064.6,0.01310884]
[1773354281467,1.21259512,2065.1,2064.6,0.01310884]
[1773354281668,1.21259512,2065.1,2065.0,0.001]
[1773354281869,1.21259512,2065.1,2064.7,0.001]
[1773354284201,1.21259512,2065.1,2064.5,0.66175303]
[1773354286619,0.002,2065.1,2064.7,0.66175303]
[1773354287309,0.01410884,2065.1,2064.7,0.66175303]
[1773354289712,1.21065375,2065.0,2064.7,0.66175303]
[1773354290104,1.21065375,2065.0,2064.5,0.66175303]
[1773354294451,1.21065375,2065.0,2064.7,0.001]
[1773354295017,0.002,2064.9,2064.7,0.001]
[1773354296213,0.002,2064.9,2064.2,0.66275303]
[1773354296214,1.04295679,2064.8,2064.2,0.66275303]
[1773354296347,0.002,2064.9,2064.3,0.66175303]
[1773354296729,0.002,2064.9,2064.4,0.66175303]
[1773354297144,0.002,2064.9,2064.2,1.21207591]
[1773354297145,0.33824697,2064.8,2064.2,0.001]
[1773354297348,0.33824697,2064.8,2064.2,1.71051647]
[1773354297728,0.33824697,2064.8,2064.3,0.49840006]
[1773354297936,0.002,2064.9,2064.5,0.49840006]
[1773354298321,0.002,2064.9,2064.7,0.49840006]
[1773354298739,0.002,2064.9,2064.3,4.84416774]
[1773354298740,0.45860728,2064.9,2064.3,0.49840006]
[1773354299766,4.85672385,2065.1,2064.9,0.49840006]
[1773354299767,0.01410884,2065.1,2064.9,0.49840006]
[1773354299999,1.22470756,2065.1,2064.9,0.49840006]
[1773354300472,1.22471805,2065.1,2064.9,0.49840006]
[1773354300823,1.68132533,2065.1,2064.7,0.49840006]
[1773354301752,0.01410884,2065.1,2064.9,0.49840006]
[1773354301923,0.002,2065.3,2064.9,0.49840006]
[1773354302339,0.002,2065.3,2065.1,0.49840006]
[1773354306473,0.002,2065.5,2065.0,1.04295679]
[1773354306675,0.002,2065.5,2065.1,0.49840006]
[1773354307373,1.21236601,2065.5,2065.1,0.49840006]
[1773354308341,1.21238158,2065.5,2065.1,0.49840006]
[1773354308541,1.21238158,2065.5,2065.2,0.49840006]
[1773354308845,0.002,2065.3,2065.2,0.49840006]
[1773354310172,4.8405364,2065.9,2065.2,0.49840006]
[1773354310173,0.84183684,2065.8,2065.3,0.49840006]
[1773354310373,0.38522956,2065.8,2065.4,1.04295679]
[1773354310547,0.38522956,2065.8,2065.6,0.49840006]
[1773354310870,0.002,2066.3,2065.6,0.49840006]
[1773354310871,0.45660728,2067.1,2065.8,0.49840006]
[1773354311070,0.45660728,2067.1,2066.6,0.49840006]
[1773354312756,0.45660728,2066.9,2066.2,1.70835069]
[1773354312954,0.45660728,2066.9,2066.3,0.49840006]
[1773354314166,0.45660728,2066.9,2066.4,0.49840006]
[1773354314477,1.20943092,2067.1,2066.6,0.49840006]
[1773354314682,0.24440144,2067.6,2067.0,0.49840006]
[1773354314683,1.20913136,2067.6,2067.0,0.49840006]
[1773354314879,0.01209372,2067.7,2067.3,0.49840006]
[1773354315252,1.67777637,2067.7,2067.1,0.49840006]
[1773354315454,1.67778062,2067.7,2067.1,0.49840006]
[1773354315653,1.22116957,2067.7,2067.1,0.49840006]
[1773354315857,0.01209372,2067.7,2067.3,0.49840006]
[1773354316179,1.20883903,2068.1,2067.5,0.49840006]
[1773354316481,0.45660728,2068.0,2067.5,0.49840006]
[1773354316663,1.20883903,2068.1,2067.5,0.49840006]
[1773354316867,1.20883903,2068.1,2067.6,0.49840006]
[1773354317061,1.66544631,2068.1,2067.6,0.49840006]
[1773354317266,0.45660728,2068.0,2067.6,0.49840006]
[1773354318394,0.45660728,2068.0,2067.4,0.49840006]
[1773354318976,1.20895594,2067.9,2067.4,0.49840006]
[1773354319484,1.20895594,2067.9,2067.4,1.7076423]
[1773354319777,1.66556322,2067.9,2067.4,0.49840006]
[1773354321470,0.48663817,2067.8,2067.1,0.46092253]
[1773354321772,0.48863817,2067.8,2067.1,0.46092253]
[1773354324053,1.69571105,2067.7,2067.2,1.68238157]
[1773354324255,1.69571105,2067.7,2067.2,0.47301625]
[1773354325572,1.21103316,2067.8,2067.2,0.47301625]
[1773354325777,1.21103316,2067.8,2067.3,0.46092253]
[1773354325778,0.002,2067.8,2067.3,0.46092253]
[1773354326082,0.002,2067.8,2067.5,0.46092253]
[1773354328183,0.0120907,2068.2,2067.7,0.46092253]
[1773354328394,0.01208767,2068.7,2067.9,0.46092253]
[1773354329261,0.48663817,2068.6,2067.9,0.46092253]
[1773354330294,0.48663817,2068.6,2068.0,1.20889748]
[1773354331063,0.48663817,2068.6,2068.0,1.66982001]
[1773354331264,0.48663817,2068.6,2068.1,0.46092253]
[1773354332164,0.01208767,2068.7,2068.1,0.46092253]
[1773354332485,0.49872584,2068.7,2068.2,1.20878058]
[1773354332793,1.22060511,2068.7,2068.1,1.66971886]
[1773354333095,0.48663817,2068.6,2068.1,1.20879633]
[1773354333691,0.48663817,2068.6,2067.9,1.6698355]
[1773354333900,0.48663817,2068.6,2067.9,1.20891297]
[1773354334887,0.48663817,2068.6,2067.6,0.001]
[1773354334888,0.48663817,2067.9,2067.6,0.001]
[1773354335687,2.126,2068.4,2067.6,1.21012682]
[1773354335688,0.48663817,2068.2,2067.6,1.21012682]
[1773354335882,0.48663817,2068.2,2067.6,0.001]
[1773354336266,0.48663817,2068.2,2067.6,1.21010804]
[1773354337262,1.6954772,2068.1,2067.6,0.001]
[1773354338599,0.48663817,2068.0,2067.6,0.001]
[1773354339604,1.69557216,2068.0,2067.6,0.001]
[1773354342809,0.48663817,2068.0,2067.6,0.001]
[1773354343376,1.69553722,2068.0,2067.6,0.001]
[1773354344589,0.45448217,2067.9,2067.6,0.001]
[1773354347408,0.45448217,2067.7,2067.6,0.001]
[1773354348808,1.66348661,2067.9,2067.6,0.001]
[1773354349003,1.20900444,2067.9,2067.6,0.001]
[1773354349216,4.83571037,2068.0,2067.6,0.46529934]
[1773354349408,0.45448217,2067.9,2067.6,0.001]
[1773354351398,1.20901441,2067.8,2067.6,0.001]
[1773354352408,1.67021781,2067.8,2067.6,0.001]
[1773354353690,0.4612034,2067.7,2067.4,0.001]
[1773354355915,1.20913136,2067.6,2067.4,0.001]
[1773354357882,1.67033476,2067.6,2067.4,0.001]
[1773354358080,0.4612034,2067.5,2067.4,0.001]
[1773354358482,1.20913136,2067.6,2067.4,0.001]
[1773354358683,1.67033476,2067.6,2067.4,0.001]
[1773354362013,0.4612034,2067.5,2067.2,0.01209372]
[1773354362220,0.4612034,2067.5,2067.0,0.47467859]
[1773354362589,0.4612034,2067.5,2066.9,2.141]
[1773354362911,0.4612034,2067.3,2066.7,3.51452927]
[1773354363120,0.4612034,2067.3,2066.7,3.85886766]
[1773354364518,0.4612034,2067.3,2066.7,3.51452927]
[1773354364822,0.4612034,2067.3,2066.7,0.01209674]
[1773354365324,0.4612034,2067.1,2066.7,0.01209674]
[1773354365727,0.4612034,2067.1,2066.7,0.35643513]
[1773354367190,1.20948234,2067.0,2066.7,0.35643513]
[1773354367619,0.4612034,2066.9,2066.7,0.01209674]
[1773354368307,1.20948234,2067.0,2066.7,0.35643513]
[1773354369295,0.6403308,2067.0,2066.7,0.35643513]
[1773354369494,0.6403308,2067.4,2066.7,1.22174019]
[1773354372120,1.20930682,2067.3,2066.7,1.22174019]
[1773354372303,1.84963762,2067.3,2066.7,1.22174019]
[1773354373018,1.84956882,2067.5,2066.8,2.59974411]
[1773354373823,1.84956882,2067.5,2066.9,0.001]
[1773354374124,0.002,2067.2,2066.9,0.001]
[1773354382235,0.002,2067.2,2066.9,1.21054085]
[1773354384324,0.6423308,2067.2,2066.9,1.21054085]
[1773354384718,0.6423308,2067.2,2066.9,0.001]
[1773354384719,0.6403308,2067.1,2066.9,0.001]
[1773354386548,1.20946412,2067.1,2066.9,0.001]
[1773354386850,1.20946412,2067.1,2066.7,1.22175403]
[1773354386851,0.6403308,2067.0,2066.7,1.22175403]
[1773354387351,0.6403308,2067.0,2066.7,0.01209674]
[1773354388220,0.6423308,2067.0,2066.7,0.01209674]
[1773354388634,0.6423308,2067.0,2066.9,0.001]
[1773354399835,0.6393308,2066.9,2066.7,0.01209674]
[1773354401147,1.84887623,2066.9,2066.7,0.01209674]
[1773354401347,0.6393308,2066.8,2066.7,0.01209674]
[1773354401949,0.6413308,2066.8,2066.7,0.01209674]
[1773354412777,0.6413308,2066.8,2066.6,0.001]
[1773354412778,1.21159938,2066.8,2066.6,0.001]
[1773354413077,0.63328243,2066.7,2066.6,0.001]
[1773354414978,1.84294033,2066.7,2066.6,0.001]
[1773354415270,0.63328243,2066.7,2066.6,0.001]
[1773354415564,0.67818961,2066.6,2066.4,0.001]
[1773354417073,0.63328243,2066.5,2066.4,0.001]
[1773354417451,0.58431118,2066.5,2066.4,0.001]
[1773354419172,0.67718961,2066.4,2066.3,1.20989142]
[1773354422565,0.67718961,2066.4,2066.2,1.22200338]
[1773354422764,0.60879681,2066.3,2066.2,0.01209977]
[1773354423184,0.60879681,2066.3,2065.8,2.30603673]
[1773354423385,0.60274692,2066.1,2065.7,2.30603673]
[1773354423590,0.60274692,2066.1,2065.6,3.52843252]
[1773354423750,0.60274692,2066.1,2065.6,2.31813952]
[1773354423955,0.60274692,2065.9,2065.6,0.01210279]
[1773354425255,0.60274692,2065.7,2065.6,0.01210279]
[1773354427165,0.60274692,2065.7,2065.6,1e-08]
[1773354427566,1.81299042,2065.7,2065.6,1e-08]
[1773354428076,0.6771896,2065.6,2065.3,1.21147159]
[1773354428277,0.6771896,2065.6,2065.5,0.001]
[1773354430177,0.6771896,2065.6,2065.3,0.001]
[1773354430178,0.60274692,2065.5,2065.3,0.001]
[1773354433684,0.6771896,2065.4,2065.3,0.001]